Workbook

Sheet Plan1
A1: CÁLCULO DA PENA
B2: Anos | E2: Meses | H2: Dias | K2: Dias-multa | L2: Percentual | P2: Ctrl + L | Q2: Limpa geral
B3: 10 | E3: 5 | H3: 10 | K3: 120 | L3: 1 | M3: / | N3: 6 | P3: Ctrl + Z | Q3: Zera
A4: Dividindo pelo divisor | B4: =B3/N3 -> 1.666666667 | C4: =MOD(B3,N3) -> 4 | D4: =C4*12 -> 48 | E4: =E3+D4 -> 53 | L4: Multiplicador | N4: Divisor
B5: =ROUNDDOWN(B4,0) -> 1 | E5: =E4/N3 -> 8.833333333 | F5: =MOD(E4,N3) -> 5 | G5: =F5*30 -> 150 | H5: =H3+G5 -> 160 | I5: =H5*30 -> 4800 | J5: =H5*30 -> 4800
E6: =ROUNDDOWN(E5,0) -> 8 | H6: =H5/N3 -> 26.66666667
H7: =ROUNDDOWN(H6,0) -> 26
A8: Aplicando o multiplicador | B8: =B5*L3 -> 1 | E8: =E6*L3 -> 8 | H8: =H7*L3 -> 26
D9: =B8*12 -> 12 | E9: =D9+E8 -> 20 | G9: =E9*30 -> 600 | H9: =G9+H8 -> 626 | I9: =G9*30 -> 18000 | J9: =G9*30 -> 18000
E10: =ROUNDDOWN(H10,0) -> 20 | H10: =H9/30 -> 20.86666667
E11: =E10/12 -> 1.666666667 | H11: =MOD(H9,30) -> 26
A12: Percentual | B12: =ROUNDDOWN(E11,0) -> 1 | E12: =MOD(E10,12) -> 8 | H12: =H11 -> 26 | K12: =ROUNDDOWN(K3*L3/N3,0) -> 20
D13: dividindo por 12 | G13: dividindo por 30 | I13: dividindo por 30 | J13: dividindo por 30 | L13: Elaborada por:
A14: Somando o percentual | B14: =B3+B8 -> 11 | E14: =E3+E8 -> 13 | H14: =H3+H8 -> 36 | L14: Walfredo Carneiro
A15: arrumando os números | F15: =ROUNDDOWN(H15,0) -> 1 | H15: =H14/30 -> 1.2
E16: =E14+F15 -> 14 | H16: =MOD(H14,30) -> 6
C17: =ROUNDDOWN(E17,0) -> 1 | E17: =E16/12 -> 1.166666667
A18: Percentual somado | B18: =B14+C17 -> 12 | E18: =MOD(E16,12) -> 2 | H18: =H16 -> 6 | K18: =K3+K12 -> 140 | P18: Ctrl + S | Q18: Transfere percentual somado
A20: Diminuindo o percentual | B20: =B3-B8 -> 9 | E20: =E3-E8 -> -3 | H20: =H3-H8 -> -16
A21: arrumando os números | D21: =B20*12 -> 108 | E21: =E20+D21 -> 105 | G21: =E21*30 -> 3150 | H21: =G21+H20 -> 3134 | I21: =G21*30 -> 94500 | J21: =G21*30 -> 94500
E22: =ROUNDDOWN(H22,0) -> 104 | H22: =H21/30 -> 104.4666667
D23: =ROUNDDOWN(E23,0) -> 8 | E23: =E22/12 -> 8.666666667 | H23: =MOD(H21,30) -> 14
A24: Percentual reduzido | B24: =D23 -> 8 | E24: =MOD(E22,12) -> 8 | H24: =H23 -> 14 | K24: =K3-K12 -> 100 | P24: Ctrl + D | Q24: Transfere percentual reduzido
A26: Período a ser somado | B26: 0 | E26: 0 | H26: 0 | K26: 0
D27: dividindo por 12 | G27: dividindo por 30 | I27: dividindo por 30 | J27: dividindo por 30 | L27: Elaborada por:
A28: Somando o percentual | B28: =B3+B26 -> 10 | E28: =E3+E26 -> 5 | H28: =H3+H26 -> 10 | L28: Walfredo Carneiro
A29: arrumando os números | F29: =ROUNDDOWN(H29,0) -> 0 | H29: =H28/30 -> 0.3333333333
E30: =E28+F29 -> 5 | H30: =MOD(H28,30) -> 10
C31: =ROUNDDOWN(E31,0) -> 0 | E31: =E30/12 -> 0.4166666667
A32: Resultado da soma | B32: =B28+C31 -> 10 | E32: =MOD(E30,12) -> 5 | H32: =H30 -> 10 | K32: =K3+K26 -> 120 | P32: Ctrl + T | Q32: Transfere soma para novo cálculo
A34: Período a ser reduzido | B34: 0 | E34: 0 | H34: 0 | K34: 0 | M34: 0
A36: Diminuindo o percentual | B36: =B3-B34 -> 10 | E36: =E3-E34 -> 5 | H36: =H3-H34 -> 10
A37: arrumando os números | D37: =B36*12 -> 120 | E37: =E36+D37 -> 125 | G37: =E37*30 -> 3750 | H37: =G37+H36 -> 3760 | I37: =G37*30 -> 112500 | J37: =G37*30 -> 112500
E38: =ROUNDDOWN(H38,0) -> 125 | H38: =H37/30 -> 125.3333333
D39: =ROUNDDOWN(E39,0) -> 10 | E39: =E38/12 -> 10.41666667 | H39: =MOD(H37,30) -> 10
A40: Resultado da redução | B40: =D39 -> 10 | E40: =MOD(E38,12) -> 5 | H40: =H39 -> 10 | K40: =K3-K34 -> 120 | P40: Ctrl + R | Q40: Transfere redução para novo cálculo
M42: Versão 9.9.4
M43: Walfredo C. F. Carneiro
M44: Analista Judiciário - TJDFT

Sheet Plan2

Sheet Plan3
